bitfinex-derivatives/quotes_BTCF0:USTF0_20250903
["timestamp","ask_amount","ask_price","bid_price","bid_amount"]
[1756907187110,0.36252,111740.0,111730.0,0.70853814]
[1756907187306,0.38332,111760.0,111750.0,0.02254]
[1756907187507,0.75332,111760.0,111750.0,0.0371]
[1756907187703,0.75332,111760.0,111750.0,0.1077222]
[1756907187918,0.7308,111760.0,111750.0,0.0371]
[1756907188303,0.38332,111760.0,111750.0,0.0371]
[1756907188706,1.30475814,111760.0,111740.0,0.37536]
[1756907188908,0.38832,111760.0,111740.0,0.37536]
[1756907189112,0.38832,111760.0,111740.0,0.01456]
[1756907189610,0.38932,111760.0,111740.0,0.01456]
[1756907189810,0.38932,111760.0,111740.0,0.37536]
[1756907190016,0.38932,111760.0,111750.0,0.0371]
[1756907190220,0.38932,111760.0,111750.0,0.10716398]
[1756907190516,1.31075814,111760.0,111740.0,0.37536]
[1756907190704,0.38932,111760.0,111740.0,0.37536]
[1756907191109,0.39374,111760.0,111740.0,0.37536]
[1756907191409,0.38832,111760.0,111740.0,0.37536]
[1756907191714,0.38774,111760.0,111740.0,0.37636]
[1756907191922,0.38332,111760.0,111750.0,0.0371]
[1756907193215,0.38332,111760.0,111750.0,0.07311273]
[1756907193517,0.38332,111760.0,111740.0,0.37636]
[1756907193518,0.39195,111760.0,111740.0,0.37536]
[1756907193724,0.38332,111760.0,111740.0,0.37536]
[1756907194021,0.39295,111760.0,111740.0,0.37536]
[1756907194517,0.38432,111760.0,111750.0,0.0371]
[1756907195015,0.01293,111750.0,111740.0,0.3608]
[1756907195324,0.39625,111750.0,111740.0,0.001]
[1756907196022,0.02252,111750.0,111740.0,0.001]
[1756907196215,0.38432,111760.0,111750.0,0.0371]
[1756907196414,0.38332,111760.0,111750.0,0.0371]
[1756907196720,0.38332,111760.0,111740.0,0.37636]
[1756907197019,1.08906346,111760.0,111740.0,0.37636]
[1756907197416,0.38332,111760.0,111740.0,0.37636]
[1756907197617,0.38332,111760.0,111740.0,0.44656624]
[1756907198015,0.38332,111760.0,111750.0,0.70853814]
[1756907198219,0.38332,111760.0,111750.0,0.0371]
[1756907199119,0.02252,111760.0,111750.0,0.0371]
[1756907199314,0.02385,111770.0,111760.0,0.01383]
[1756907199515,0.02385,111770.0,111760.0,0.3991]
[1756907199714,0.38465,111780.0,111770.0,0.0383]
[1756907199916,0.74465,111780.0,111770.0,0.0383]
[1756907201022,0.74765,111780.0,111770.0,0.0383]
[1756907201222,0.55765,111780.0,111770.0,0.0383]
[1756907201426,0.02685,111780.0,111770.0,0.3991]
[1756907201611,0.02685,111780.0,111770.0,1.32053814]
[1756907201814,0.02685,111780.0,111770.0,0.6491]
[1756907201815,0.003,111780.0,111770.0,0.6491]
[1756907202118,0.003,111780.0,111770.0,1.32053814]
[1756907202619,0.005,111790.0,111780.0,0.0383]
[1756907202921,0.005,111820.0,111810.0,0.0383]
[1756907203126,0.005,111820.0,111810.0,0.9683]
[1756907203715,0.005,111820.0,111810.0,1.3291]
[1756907203919,0.335,111820.0,111810.0,1.3291]
[1756907204110,0.005,111820.0,111810.0,2.00053814]
[1756907204311,0.005,111820.0,111810.0,1.35016822]
[1756907204624,0.005,111820.0,111810.0,1.06141891]
[1756907204815,0.007,111820.0,111810.0,1.06141891]
[1756907205120,0.007,111820.0,111810.0,2.09365705]
[1756907205317,0.007,111820.0,111810.0,2.34365705]
[1756907205514,0.007,111820.0,111810.0,1.67221891]
[1756907205722,0.007,111820.0,111810.0,1.42221891]
[1756907205926,0.007,111820.0,111810.0,2.09365705]
[1756907206126,0.007,111820.0,111810.0,1.43101075]
[1756907206415,0.008,111820.0,111810.0,1.42221891]
[1756907206616,0.008,111820.0,111810.0,2.09365705]
[1756907206819,0.008,111820.0,111810.0,1.42221891]
[1756907207429,0.008,111820.0,111810.0,2.43307845]
[1756907207619,0.008,111820.0,111810.0,2.66169891]
[1756907207814,0.0051,111860.0,111850.0,0.0383]
[1756907208124,0.37943,111880.0,111850.0,2.00197628]
[1756907208125,0.3658,111880.0,111850.0,2.00197628]
[1756907208320,0.7258,111880.0,111870.0,0.70973814]
[1756907208516,0.365,111880.0,111870.0,0.70973814]
[1756907208712,0.365,111880.0,111870.0,1.29606814]
[1756907208713,0.355,111880.0,111870.0,1.29606814]
[1756907208925,0.3608,111910.0,111890.0,0.01383]
[1756907209113,0.6908,111910.0,111890.0,0.01393]
[1756907209312,0.6908,111910.0,111890.0,0.0001]
[1756907209313,0.3608,111900.0,111890.0,0.0001]
[1756907209519,0.7008,111900.0,111890.0,0.01383]
[1756907210224,0.7008,111900.0,111880.0,0.68536814]
[1756907210225,0.9508,111900.0,111880.0,0.68536814]
[1756907210428,0.7028,111900.0,111890.0,0.01383]
[1756907210622,0.7028,111900.0,111890.0,0.68526814]
[1756907211128,0.7028,111900.0,111890.0,0.01383]
[1756907211326,0.72665,111900.0,111890.0,0.0383]
[1756907211524,0.36585,111900.0,111890.0,0.70973814]
[1756907211725,0.36585,111900.0,111890.0,0.95973814]
[1756907211726,0.7028,111900.0,111890.0,0.95973814]
[1756907211926,0.002,111900.0,111890.0,0.95973814]
[1756907212122,0.02585,111900.0,111890.0,1.02322]
[1756907212428,0.63665,111900.0,111880.0,0.1066107]
[1756907212626,0.02385,111890.0,111880.0,0.0001]
[1756907212929,0.3628,111900.0,111890.0,0.0383]
[1756907213123,0.38665,111900.0,111890.0,0.0383]
[1756907213324,0.64567,111900.0,111880.0,0.01393]
[1756907213529,0.38465,111890.0,111880.0,0.0001]
[1756907213720,0.38465,111890.0,111870.0,1.44329315]
[1756907213921,0.38465,111890.0,111880.0,0.70973814]
[1756907213922,0.3608,111890.0,111880.0,0.70973814]
[1756907214229,0.38465,111890.0,111880.0,0.0383]
[1756907214429,0.3608,111890.0,111880.0,0.70973814]
[1756907214617,0.3608,111910.0,111890.0,0.0383]
[1756907214823,0.3608,111910.0,111900.0,1.71033814]
[1756907215024,0.36982,111940.0,111910.0,0.01383]
[1756907215223,0.02385,111930.0,111910.0,1.04616814]
[1756907215426,0.36982,111940.0,111920.0,0.67143814]
[1756907215730,0.36982,111940.0,111920.0,0.0001]
[1756907215731,0.3608,111930.0,111920.0,0.0001]
[1756907215932,0.3608,111930.0,111910.0,0.68536814]
[1756907216633,0.3608,111920.0,111910.0,0.01393]
[1756907216828,0.3608,111920.0,111910.0,1.68594814]
[1756907217030,0.3608,111920.0,111910.0,0.01383]
[1756907217530,0.6108,111920.0,111910.0,0.9988]
[1756907217728,0.6108,111920.0,111910.0,1.0018]
[1756907217931,0.6108,111920.0,111910.0,0.003]
[1756907218124,0.3608,111920.0,111910.0,0.67443814]
[1756907218327,0.3608,111920.0,111910.0,0.68926814]
[1756907218532,0.3608,111930.0,111920.0,0.01383]
[1756907218729,0.3608,111930.0,111920.0,0.68526814]
[1756907218933,0.63465,111930.0,111910.0,0.37873]
[1756907219136,0.38465,111920.0,111910.0,0.0041]
[1756907219433,0.38965,111920.0,111910.0,0.004]
[1756907219635,0.38465,111920.0,111910.0,0.0423]
[1756907220028,0.38465,111920.0,111910.0,0.004]
[1756907220234,0.39758,111920.0,111910.0,0.003]
[1756907220535,0.02987,111910.0,111900.0,0.00904205]
[1756907220736,0.38465,111910.0,111900.0,0.03341205]
[1756907221030,0.3608,111920.0,111910.0,0.0413]
[1756907221236,0.02385,111920.0,111910.0,0.0413]
[1756907221437,0.02385,111920.0,111910.0,0.71273814]
[1756907221636,0.3608,111930.0,111920.0,0.0383]
[1756907221637,0.02385,111930.0,111920.0,0.0383]
[1756907221934,0.37473,111950.0,111940.0,0.01383]
[1756907221935,0.3618,111950.0,111940.0,0.01383]
[1756907222131,0.001,111950.0,111940.0,1.62879]
[1756907222331,0.001,111950.0,111940.0,2.31022814]
[1756907222534,0.00015268,111990.0,111960.0,0.01383]
[1756907222735,5.268e-05,111990.0,111980.0,0.01383]
[1756907222929,1.03229082,111990.0,111970.0,0.0001]
[1756907223134,0.3608,111980.0,111970.0,0.0001]
[1756907223327,0.36085268,111990.0,111970.0,0.68526814]
[1756907223533,5.268e-05,111990.0,111980.0,0.01383]
[1756907223741,0.36085268,111990.0,111980.0,0.01383]
[1756907224034,0.62183268,111990.0,111970.0,0.0001]
[1756907224243,1.03825814,111980.0,111970.0,0.0001]
[1756907224431,0.3608,111980.0,111960.0,1.04616814]
[1756907224736,0.3608,111980.0,111970.0,0.01383]
[1756907224937,0.3608,111980.0,111960.0,0.0001]
[1756907225128,0.3608,111970.0,111960.0,0.0101]
[1756907225437,1.03723814,111970.0,111950.0,0.0001]
[1756907225638,0.3608,111960.0,111950.0,0.0001]
[1756907225938,0.3608,111970.0,111950.0,0.01383]
[1756907226128,0.3608,111970.0,111950.0,1.04616814]
[1756907226335,0.003,111980.0,111960.0,1.04606814]
[1756907226527,0.003,111980.0,111960.0,1.04616814]
[1756907226732,0.003,111980.0,111960.0,0.37473]
[1756907227437,0.3608,111970.0,111960.0,0.0001]
[1756907227638,0.3608,111970.0,111960.0,0.01383]
[1756907228032,0.3608,111970.0,111960.0,0.001]
[1756907228537,0.3638,111980.0,111960.0,0.01483]
[1756907228838,0.3608,111970.0,111960.0,0.0001]
[1756907229039,1.03723814,111970.0,111950.0,0.0001]
[1756907229239,1.03223814,111960.0,111950.0,0.0001]
[1756907229533,1.04321814,111960.0,111940.0,0.02053723]
[1756907229738,1.03223814,111950.0,111940.0,0.02053723]
[1756907229934,0.3608,111950.0,111940.0,0.02043723]
[1756907230238,0.61682,111950.0,111940.0,0.02043723]
[1756907230431,1.28825814,111950.0,111930.0,0.02054561]
[1756907230636,1.03223814,111940.0,111930.0,0.03054561]
[1756907230837,1.03223814,111940.0,111930.0,0.01]
[1756907231145,1.03223814,111940.0,111900.0,0.01379]
[1756907231146,0.005,111930.0,111900.0,0.01379]
[1756907231347,0.005,111930.0,111870.0,0.03474139]
[1756907231348,0.7216,111910.0,111870.0,0.03474139]
[1756907231643,0.3608,111890.0,111870.0,0.34474139]
[1756907231834,1.03223814,111900.0,111870.0,0.70554139]
[1756907232030,0.3588,111900.0,111880.0,0.68522814]
[1756907232230,0.3588,111900.0,111890.0,0.01379]
[1756907232441,0.3588,111900.0,111890.0,0.68522814]
[1756907232634,0.3609,111920.0,111890.0,1.04602814]
[1756907232846,0.3609,111920.0,111890.0,0.0001]
[1756907232847,1.03223814,111900.0,111890.0,0.0001]
[1756907233045,0.005,111890.0,111880.0,0.0001]
[1756907233344,0.005,111890.0,111840.0,0.01379]
[1756907233345,0.00835,111880.0,111840.0,0.01379]
[1756907233642,0.3608,111870.0,111850.0,0.37459]
[1756907233838,0.3588,111870.0,111860.0,0.01379]
[1756907235137,1.06557,111900.0,111870.0,0.01379]
[1756907235335,0.0001,111890.0,111880.0,0.68522814]
[1756907235534,0.3608,111900.0,111890.0,0.01379]
[1756907235535,0.3609,111900.0,111890.0,0.01379]
[1756907235831,0.3609,111910.0,111890.0,0.37459]
[1756907236138,0.3608,111910.0,111890.0,0.01379]
[1756907236344,0.3608,111910.0,111880.0,1.04612814]
[1756907236547,0.001,111900.0,111890.0,0.01379]
[1756907236937,0.001,111900.0,111880.0,0.01389]
[1756907236938,1.03423814,111900.0,111880.0,0.01389]
[1756907237141,0.3628,111900.0,111880.0,0.01379]
[1756907237444,0.38410293,111900.0,111880.0,0.01379]
[1756907237647,0.3618,111900.0,111880.0,0.01379]
[1756907238144,1.03223814,111900.0,111880.0,0.01379]
[1756907238340,1.03223814,111900.0,111870.0,0.37469]
[1756907238645,0.3609,111900.0,111870.0,0.38469]
[1756907238943,1.03223814,111880.0,111870.0,0.0001]
[1756907239146,1.37008,111880.0,111860.0,0.0001]
[1756907239444,0.0001,111890.0,111870.0,1.04602814]
[1756907239637,1.37102,111900.0,111870.0,1.04602814]
[1756907239832,1.39232076,111900.0,111870.0,1.04612814]
[1756907240038,1.39332076,111900.0,111870.0,1.04612814]
[1756907240340,1.03333814,111900.0,111880.0,0.01379]
[1756907240538,1.03223814,111890.0,111870.0,0.01389]
[1756907240840,0.3608,111890.0,111880.0,0.001]
[1756907241035,1.03333814,111900.0,111880.0,0.01479]
[1756907241036,0.3609,111900.0,111880.0,0.01479]
[1756907241233,1.05353641,111900.0,111880.0,0.001]
[1756907241436,0.38209827,111900.0,111880.0,0.001]
[1756907241641,1.05353641,111900.0,111870.0,0.37469]
[1756907241847,0.38219827,111900.0,111870.0,0.37669]
[1756907242044,1.05363641,111900.0,111870.0,0.01589]
[1756907242534,0.38219827,111900.0,111870.0,1.04812814]
[1756907242933,0.3608,111890.0,111870.0,0.68732814]
[1756907243134,0.3608,111890.0,111870.0,0.37659]
[1756907243848,0.3609,111900.0,111880.0,0.01379]
[1756907244147,1.36896,111900.0,111880.0,0.01379]
[1756907244443,0.3608,111890.0,111870.0,0.3609]
[1756907244644,0.3608,111890.0,111870.0,0.37459]
[1756907244846,1.36906,111900.0,111880.0,0.01379]
[1756907245043,0.3608,111890.0,111880.0,0.01379]
[1756907245551,0.3609,111900.0,111880.0,0.01379]
[1756907245749,0.3608,111890.0,111880.0,0.01379]
[1756907245953,0.3608,111890.0,111870.0,0.37469]
[1756907246145,0.3608,111890.0,111870.0,0.37459]
[1756907246555,0.3608,111890.0,111880.0,0.01379]
[1756907246853,1.00738,111900.0,111880.0,0.37459]
[1756907247165,1.00728,111900.0,111880.0,0.37459]
[1756907247353,0.001,111900.0,111880.0,0.37459]
[1756907247546,1.38016,111910.0,111880.0,0.37459]
[1756907247747,1.40142839,111910.0,111880.0,0.37469]
[1756907248143,0.3609,111910.0,111890.0,0.01379]
[1756907248344,0.001,111900.0,111890.0,0.01379]
[1756907248540,0.001,111900.0,111890.0,0.37459]
[1756907248751,0.001,111900.0,111890.0,1.22307858]
[1756907249437,0.001,111900.0,111890.0,1.31243538]
[1756907250045,0.001,111900.0,111890.0,1.22307858]
[1756907250253,0.0011,111910.0,111900.0,0.01379]
[1756907250448,0.001,111910.0,111900.0,0.97307858]
[1756907251250,0.001,111910.0,111900.0,1.31242738]
[1756907251551,0.001,111910.0,111900.0,1.22307858]
[1756907251753,0.0001,111920.0,111910.0,0.01379]
[1756907251954,0.0001,111930.0,111920.0,0.01379]
[1756907252252,0.3608,111940.0,111930.0,0.01379]
[1756907252253,0.0001,111940.0,111930.0,0.01379]
[1756907252455,1.00274,111950.0,111930.0,0.37459]
[1756907252747,1.00264,111950.0,111930.0,0.37459]
[1756907252944,1.00264,111950.0,111930.0,0.01379]
[1756907252945,1.37189,111950.0,111930.0,0.01379]
[1756907253142,0.3608,111940.0,111920.0,0.37469]
[1756907253339,0.3608,111940.0,111920.0,0.37459]
[1756907253543,0.3608,111940.0,111930.0,0.01379]
[1756907253839,1.00274,111950.0,111930.0,0.37459]
[1756907254046,1.02391246,111950.0,111940.0,0.3608]
[1756907254341,0.02127246,111950.0,111940.0,0.37459]
[1756907254748,0.0001,111960.0,111950.0,0.01379]
[1756907255045,0.3609,111970.0,111950.0,0.01379]
[1756907255349,0.3609,111970.0,111940.0,0.37469]
[1756907255350,0.003,111950.0,111940.0,0.37469]
[1756907255544,0.003,111950.0,111940.0,0.37459]
[1756907256247,0.003,111950.0,111940.0,0.39844]
[1756907256441,0.02623,111950.0,111940.0,0.39844]
[1756907256646,0.27623,111950.0,111940.0,0.37459]
[1756907257049,0.27623,111950.0,111940.0,0.01379]
[1756907257249,0.63703,111950.0,111930.0,0.0001]
[1756907257447,0.63703,111950.0,111940.0,0.95928858]
[1756907257448,0.02129504,111950.0,111940.0,0.95928858]
[1756907257648,0.0021,111960.0,111950.0,0.01379]
[1756907257855,0.002,111960.0,111950.0,0.99692858]
[1756907258152,0.0001,111970.0,111960.0,0.01379]
[1756907258358,0.38413,111980.0,111970.0,0.03764]
[1756907258658,0.41865857,111980.0,111960.0,0.0001]
[1756907258858,0.39542857,111980.0,111950.0,0.37469]
[1756907259049,0.002,111960.0,111950.0,0.37469]
[1756907259249,0.002,111960.0,111950.0,0.3608]
[1756907259758,0.002,111960.0,111950.0,0.37513]
[1756907260145,0.002,111960.0,111950.0,0.62513]
[1756907260350,0.002,111960.0,111950.0,0.37513]
[1756907260651,0.3628,111960.0,111950.0,0.01433]
[1756907260846,0.26022,111960.0,111940.0,0.3609]
[1756907261055,0.97262858,111950.0,111930.0,0.0001]
[1756907261251,0.3608,111940.0,111920.0,0.37523]
[1756907261455,0.37414,111940.0,111920.0,0.3608]
[1756907261662,0.00822,111920.0,111890.0,0.01433]
[1756907261953,0.3608,111910.0,111890.0,0.01433]
[1756907262156,0.38208438,111910.0,111890.0,0.01433]
[1756907262353,0.02128438,111910.0,111900.0,0.37513]
[1756907262658,0.3608,111930.0,111910.0,0.01433]
[1756907262860,0.0001,111920.0,111910.0,0.37513]
[1756907263159,0.3609,111930.0,111900.0,0.37513]
[1756907263355,0.98067867,111930.0,111900.0,0.37513]
[1756907263658,0.98879867,111930.0,111900.0,0.3608]
[1756907263857,0.3608,111910.0,111900.0,0.001]
[1756907264058,1.96602858,111910.0,111900.0,0.001]
[1756907264258,1.98732917,111910.0,111900.0,0.001]
[1756907264454,1.38884059,111910.0,111900.0,0.001]
[1756907265060,1.99132917,111910.0,111900.0,0.001]
[1756907265258,2.24132917,111910.0,111900.0,0.001]
[1756907265461,2.24132917,111910.0,111880.0,0.0001]
[1756907265760,0.95928858,111890.0,111870.0,0.03517438]
[1756907266063,1.97091858,111880.0,111850.0,0.01443]
[1756907266260,0.3608,111860.0,111850.0,0.01433]
[1756907267056,0.3608,111860.0,111840.0,0.03541173]
[1756907267459,0.3608,111870.0,111840.0,0.39621173]
[1756907267661,0.3608,111870.0,111850.0,0.003]
[1756907267859,0.3608,111870.0,111850.0,0.01733]
[1756907268071,1.36168,111870.0,111850.0,0.01733]
[1756907268261,0.3608,111860.0,111850.0,0.01733]
[1756907269064,0.3608,111860.0,111850.0,0.003]
[1756907269562,0.3608,111860.0,111850.0,0.005]
[1756907269961,0.60871858,111880.0,111850.0,0.3658]
[1756907269962,0.96951858,111880.0,111850.0,0.3658]
[1756907270160,0.37103,111880.0,111850.0,0.38013]
[1756907270362,1.35996,111880.0,111860.0,0.01433]
[1756907270763,0.3608,111880.0,111860.0,0.01433]
[1756907270961,0.38208181,111880.0,111860.0,0.01433]
[1756907271166,0.3608,111880.0,111860.0,0.01433]
[1756907271368,0.37103,111890.0,111860.0,0.37513]
[1756907271669,0.37103,111890.0,111870.0,0.01433]
[1756907271670,0.3608,111890.0,111870.0,0.01433]
[1756907271964,0.3608,111890.0,111870.0,0.37513]
[1756907272162,0.3608,111890.0,111880.0,0.01433]
[1756907272355,0.3608,111890.0,111870.0,0.01433]
[1756907272656,0.3608,111890.0,111880.0,0.01433]
[1756907272861,0.3609,111900.0,111880.0,0.97361858]
[1756907273066,0.0001,111900.0,111890.0,0.01433]
[1756907273264,0.3609,111910.0,111890.0,0.01433]
[1756907273566,0.3608,111900.0,111890.0,0.01433]
[1756907273961,0.3608,111900.0,111880.0,0.37513]
[1756907274158,0.3609,111900.0,111880.0,0.37513]
[1756907274371,0.95928858,111890.0,111860.0,0.01443]
[1756907274668,0.3608,111880.0,111860.0,0.01433]
[1756907274868,0.3608,111870.0,111850.0,0.01433]
[1756907276172,0.37103,111870.0,111850.0,0.002]
[1756907276566,1.36755,111870.0,111850.0,0.002]
[1756907276766,1.36755,111870.0,111840.0,0.39621173]
[1756907277071,0.3608,111860.0,111840.0,0.02108173]
[1756907277467,0.36902,111860.0,111840.0,0.02108173]
[1756907277674,0.00822,111860.0,111840.0,0.38188173]
[1756907277876,1.36583,111870.0,111840.0,0.39621173]
[1756907278369,0.3608,111860.0,111840.0,0.39621173]
[1756907279068,0.3608,111860.0,111850.0,0.01433]
[1756907279373,0.3608,111870.0,111850.0,0.01433]
[1756907279763,0.3608,111860.0,111840.0,0.37613]
[1756907280271,1.36371,111890.0,111860.0,0.01433]
[1756907280466,0.37113,111900.0,111870.0,0.37513]
[1756907280667,0.3608,111890.0,111870.0,0.01433]
[1756907281068,0.3608,111890.0,111880.0,0.01433]
[1756907281272,0.3608,111890.0,111870.0,0.37513]
[1756907281869,1.3553,111900.0,111880.0,0.37513]
[1756907281870,0.3609,111900.0,111880.0,0.37513]
[1756907282070,0.96961858,111900.0,111870.0,0.37513]
[1756907282271,0.003,111890.0,111880.0,0.01433]
[1756907282466,0.3638,111890.0,111880.0,0.01433]
[1756907282868,0.3638,111890.0,111870.0,0.37513]
[1756907283069,0.3638,111890.0,111880.0,0.01433]
[1756907283769,0.38836,111890.0,111870.0,0.37513]
[1756907285277,0.38836,111890.0,111880.0,0.01433]
[1756907285470,0.38536,111890.0,111880.0,0.01433]
[1756907286079,0.02456,111890.0,111880.0,0.03688]
[1756907286271,0.02456,111890.0,111880.0,0.39768]
[1756907286472,0.02456,111890.0,111870.0,0.37513]
[1756907286979,0.02456,111890.0,111880.0,0.03688]
[1756907287182,0.02556,111890.0,111870.0,0.37513]
[1756907288390,0.02556,111890.0,111880.0,0.02255]
[1756907288881,0.02556,111890.0,111870.0,0.37513]
[1756907289179,0.40649691,111890.0,111870.0,0.37513]
[1756907289377,0.38384,111880.0,111870.0,0.001]
[1756907289574,1.23232858,111880.0,111870.0,0.001]
[1756907289776,1.62728,111880.0,111870.0,0.001]
[1756907290277,1.64829081,111880.0,111870.0,0.001]
[1756907290484,2.24677939,111880.0,111870.0,0.001]
[1756907290786,2.24677939,111880.0,111860.0,0.01461]
[1756907290787,1.64829081,111880.0,111860.0,0.01461]
[1756907290973,1.37525081,111880.0,111850.0,0.37513]
[1756907291175,0.02304,111860.0,111850.0,0.39831]
[1756907291678,0.02304,111860.0,111850.0,0.37513]
[1756907291873,0.02304,111860.0,111850.0,0.39831]
[1756907292779,2.22380858,111860.0,111840.0,0.01433]
[1756907292974,0.02304,111840.0,111830.0,0.39859]
[1756907293174,0.3608,111850.0,111830.0,0.39859]
[1756907293369,1.36251,111860.0,111850.0,0.03779]
[1756907293370,0.02304,111860.0,111850.0,0.03779]
[1756907293569,1.12868,111870.0,111850.0,0.03779]
[1756907293775,0.4050389,111870.0,111860.0,0.03779]
[1756907293981,0.4050389,111870.0,111850.0,0.01461]
[1756907294776,0.4050389,111870.0,111860.0,0.03779]
[1756907295079,0.4050389,111870.0,111850.0,0.01461]
[1756907295379,0.02304,111850.0,111830.0,0.37651]
[1756907295572,0.40504772,111850.0,111830.0,0.01561]
[1756907295769,0.04424772,111850.0,111830.0,0.37841]
[1756907295971,0.04424772,111850.0,111840.0,0.39859]
[1756907295972,0.02120772,111850.0,111840.0,0.39859]
[1756907296173,0.38384,111860.0,111850.0,0.03779]
[1756907296377,0.04424466,111860.0,111850.0,0.03779]
[1756907296580,0.02304,111870.0,111860.0,0.03779]
[1756907296775,0.38384,111880.0,111870.0,0.01461]
[1756907296974,0.40504172,111880.0,111870.0,0.01461]
[1756907297781,0.40504172,111880.0,111860.0,0.01461]
[1756907298183,0.40504172,111880.0,111870.0,0.03779]
[1756907298384,0.40504172,111880.0,111860.0,0.01461]
[1756907298385,0.04424172,111880.0,111860.0,0.01461]
[1756907298587,0.02404,111870.0,111860.0,0.01461]
[1756907298777,0.02404,111870.0,111860.0,0.03779]
[1756907299085,0.04524446,111870.0,111860.0,0.03779]
[1756907299582,1.03280446,111870.0,111850.0,0.37541]
[1756907299789,1.40182446,111870.0,111850.0,0.37541]
[1756907300081,1.39360446,111870.0,111850.0,0.37541]
[1756907300380,0.04424446,111870.0,111860.0,0.03779]
[1756907301377,0.04424446,111870.0,111850.0,0.37641]
[1756907301882,1.01476304,111870.0,111850.0,0.37641]
[1756907302282,0.41627446,111870.0,111850.0,0.37641]
[1756907302475,0.41627446,111870.0,111850.0,0.01561]
[1756907302979,1.39336446,111870.0,111860.0,0.03779]
[1756907303283,1.39236446,111870.0,111850.0,0.01461]
[1756907303483,1.39236446,111870.0,111840.0,0.37551]
[1756907303484,1.99907304,111870.0,111840.0,0.37541]
[1756907303874,0.01023,111860.0,111840.0,0.37541]
[1756907304085,0.02304,111850.0,111840.0,0.37541]
[1756907304280,1.98865304,111850.0,111820.0,0.39660399]
[1756907304578,0.41527446,111850.0,111820.0,0.39650399]
[1756907304783,1.40131446,111850.0,111830.0,0.01461]
[1756907305378,1.40131446,111850.0,111820.0,0.39650399]
[1756907305586,1.00936,111840.0,111830.0,0.03779]
[1756907305779,1.03056446,111840.0,111830.0,0.03779]
[1756907306387,1.03056446,111840.0,111820.0,0.37541]
[1756907306575,1.02956446,111840.0,111830.0,0.001]
[1756907306981,1.02956446,111840.0,111830.0,0.03879]
[1756907307482,1.02956446,111840.0,111830.0,0.003]
[1756907307878,1.94960521,111840.0,111830.0,0.003]
[1756907308084,0.02304,111820.0,111810.0,0.37551]
[1756907308281,0.02304,111820.0,111810.0,0.39859]
[1756907308482,1.00604,111830.0,111820.0,0.03779]
[1756907308784,1.02724628,111830.0,111820.0,0.03779]
[1756907308991,0.02020628,111830.0,111820.0,0.03779]
[1756907309188,0.04324628,111830.0,111820.0,0.03779]
[1756907309582,0.3608,111850.0,111820.0,1.31863075]
[1756907309779,0.02304,111850.0,111840.0,0.03779]
[1756907310082,1.00444,111850.0,111840.0,0.03779]
[1756907310682,1.00444,111850.0,111840.0,0.01461]
[1756907310888,1.36524,111850.0,111830.0,0.37541]
[1756907311287,0.02304,111830.0,111820.0,0.37741]
[1756907311480,1.67348075,111830.0,111820.0,0.37741]
[1756907311787,0.02304,111840.0,111830.0,0.03779]
[1756907312389,0.02304,111840.0,111830.0,0.01461]
[1756907312590,0.02304,111840.0,111820.0,0.37541]
[1756907312788,0.67004075,111830.0,111810.0,1.30541]
[1756907312992,0.02304,111820.0,111800.0,0.37541]
[1756907313191,1.67896075,111810.0,111800.0,0.37541]
[1756907313395,1.00892,111810.0,111800.0,0.37541]
[1756907313594,1.00792,111810.0,111800.0,0.39859]
[1756907313991,0.02304,111810.0,111800.0,0.39859]
[1756907314186,0.98656,111820.0,111810.0,0.01461]
[1756907314390,1.00924,111820.0,111810.0,0.03779]
[1756907314592,2.29008075,111820.0,111800.0,0.37541]
[1756907314792,2.04008075,111820.0,111800.0,0.37941]
[1756907315095,2.04008075,111820.0,111800.0,0.01861]
[1756907315297,0.69308075,111810.0,111800.0,0.004]
[1756907315987,0.70331075,111810.0,111800.0,0.007]
[1756907316191,0.69308075,111810.0,111800.0,0.007]
[1756907316792,0.69508075,111810.0,111790.0,0.39611223]
[1756907316994,1.00904,111810.0,111800.0,0.03779]
[1756907317889,2.04088075,111810.0,111790.0,0.39611223]
[1756907318193,0.69308075,111800.0,111790.0,0.3608]
[1756907318398,1.05910075,111800.0,111780.0,0.01461]
[1756907318688,1.05910075,111800.0,111760.0,0.37551]
[1756907318689,2.04591075,111790.0,111760.0,0.37551]
[1756907318889,0.02398,111770.0,111760.0,0.40035]
[1756907319090,1.67522075,111770.0,111760.0,0.40035]
[1756907319594,1.00522,111770.0,111760.0,0.40035]
[1756907319794,1.00522,111770.0,111760.0,0.37541]
[1756907319990,1.00442,111770.0,111760.0,0.40035]
[1756907320183,0.02398,111770.0,111760.0,0.40235]
[1756907320384,0.02398,111780.0,111770.0,0.03916]
[1756907320587,1.0033,111780.0,111770.0,0.03916]
[1756907321188,1.67334075,111780.0,111760.0,0.37741]
[1756907321589,0.69402075,111770.0,111760.0,0.01661]
[1756907321798,0.02398,111770.0,111760.0,0.04155]
[1756907322212,0.69402075,111770.0,111760.0,0.002]
[1756907322493,1.30482075,111770.0,111750.0,0.3608]
[1756907322801,2.00804075,111760.0,111730.0,0.37512]
[1756907323094,0.38478,111750.0,111730.0,0.01422]
[1756907323294,1.67086075,111740.0,111730.0,0.01422]
[1756907323492,1.67086075,111740.0,111730.0,0.03916]
[1756907323694,0.02398,111740.0,111730.0,0.64996]
[1756907323997,0.02398,111750.0,111740.0,0.03916]
[1756907324301,0.99998,111750.0,111740.0,0.03916]
[1756907324599,0.02398,111750.0,111740.0,0.64996]
[1756907324798,0.3608,111770.0,111750.0,0.03916]
[1756907324992,1.36006,111770.0,111760.0,0.01522]
[1756907325193,1.05482075,111770.0,111760.0,0.04016]
[1756907325491,2.02974075,111770.0,111760.0,0.04016]